Workbook

Sheet Polynomial

Sheet Fibonacci

Sheet Question Set 1
A1: Q. Number | B1: Question | C1: Answer | D1: Answer | I1: -0.4999999634 | J1: =2*q^3 - 5*q^2 + q + 2 -> 2.746610375e-07 | L1: -2 | M1: =2*L1^3 - 5*L1^2 + L1 + 2 -> -36
A2: 1 | B2: Somewhere on this worksheet is a cell that has been named "px". What is the value of the number in that cell? | E2: 40 | F2: 0.20211 | J2: =COUNTIF(F2:F18,">8") -> 6 | L2: -1.8 | M2: =2*L2^3 - 5*L2^2 + L2 + 2 -> -27.664
A3: =A2+1 -> 2 | B3: Which cell is the one named "px"? (e.g. this question is in cell B3). | E3: 5 | F3: 0.1491702932 | H3: 1 | L3: -1.6 | M3: -20.592
A4: =A3+1 -> 3 | B4: This worksheet is named "Question Set 1." Rename it to be "Question Set A." | E4: 1.5 | F4: 1.5 | H4: 3 | L4: -1.4 | M4: -14.688
A5: 4 | B5: Use the quadratic equation to find the roots of the following: x2 + 3x + 2 = 0 | E5: 2.5 | F5: 2.5 | H5: 2 | L5: -1.2 | M5: -9.856
A6: 5 | B6: Evaluate the above second-order polynomial at the two roots you just found. | E6: 3.5 | F6: 3.5 | L6: -1 | M6: -6
A7: 6 | B7: Change the background color for cells C7 and D7 to green | E7: 4.5 | F7: 4.5 | L7: -0.8 | M7: -3.024
A8: 7 | B8: Merge together cells C8 and D8 and center the word "centered" in the resulting cell. | E8: 5.5 | F8: 5.5 | L8: -0.6 | M8: -0.832
A9: 8 | B9: Change the font for the words in cells C9 and D9 to Book Antigua Bold | C9: Hello | D9: World | E9: 6.5 | F9: 6.5 | L9: -0.4 | M9: 0.672
A10: 9 | B10: Sum all numbers in column E from line 2 through line 24. | E10: 7.5 | F10: 7.5 | L10: -0.2 | M10: 1.584
A11: 10 | B11: Count the number of non-blank cells in column E from line 2 through 24. | L11: 0 | M11: 2
A12: =A11+1 -> 11 | B12: Average all of the numbers in column F from line 2 through line 24. | E12: 8.5 | F12: 8.5 | L12: 0.2 | M12: 2.016
A13: 12 | B13: Find the standard deviation of all numbers in column E from line 2 to through line 24. | E13: 9.5 | F13: 9.5 | L13: 0.4 | M13: 1.728
A14: 13 | B14: Modify the entries in C14 and D14 so that the greek letter "omega" appears instead of "w" and the greek letter phi appears instead of "f". | C14: cos(wt + f) | D14: sin(wt + f) | E14: 10.5 | F14: 10.5 | L14: 0.6 | M14: 1.232
A15: 14 | B15: Modify Cell C15 so that the background will turn yellow if someone enters the word "yellow" in it. | E15: 11.5 | F15: 11.5 | L15: 0.8 | M15: 0.624
A16: 15 | B16: Tell Excel to generate two uniformly distributed random numbers in cells C16 and D16. Hint: use rand() | E16: 12.5 | F16: 12.5 | L16: 1 | M16: 0
A17: 16 | B17: Tell Excel to generate 100 normally distributed random numbers in column A of the worksheet "Normal" with a mean of 5 and standard deviation of 0.4. Hint: Use Data | Data Analysis. | F17: 0.5313652045 | L17: 1.2 | M17: -0.544
A18: 17 | B18: Calculate the mean and standard deviation of the normal numbers you created. | E18: 13.5 | F18: 13.5 | L18: 1.4 | M18: -0.912
A19: 18 | B19: Generate a histogram of the normal data you created to determine the extent to which it conforms to a normal distribution. Use Data | Histogram. You will need to create a column of "bins", which will be a series of 11 numbers from 4 to 6, separated by 0.2. | E19: 14.5 | F19: 14.5 | L19: 1.8 | M19: -0.736
A20: 19 | B20: Plot the histogram as a scatter plot (use Insert | Scatter). | E20: 15.5 | F20: 15.5 | L20: 1.9 | M20: -0.432
A21: 20 | B21: Generate the theoretical values for the histogram (see equation to the right) and plot these values on the scatter plot you just created. You will need to normalize the values so that the integrals of the data and the theoretical curve are the same. | E21: 16.5 | F21: 16.5 | L21: 2 | M21: 0
A22: 21 | B22: Set this worksheet so that it will print in landscape mode. | E22: 17.5 | F22: 17.5 | L22: 2.1 | M22: 0.572
A23: 22 | B23: Set the range from A1 through D21 as the print area for this worksheet. | L23: 2.2 | M23: 1.296
A24: 23 | B24: What is the word in cell V20211 on this sheet? | E24: 18.5 | F24: 18.5 | L24: 2.3 | M24: 2.184
A25: 24 | B25: What color is cell V20211 on this sheet? | C25: =3*xx*xx*xx + 5*xx*xx + 6*x + 2 -> -2.742748769e-06 | D25: -2.337650815 | L25: 2.4 | M25: 3.248
A26: 25 | B26: Consider the equation for DPs below, with the value of the variables and constants as indicated to the right of the equation. Calculate DPs for Q values of 10 and 20 ml/s. Feel free to use other parts of this worksheet to calculate intermediate values. | L26: 2.5 | M26: 4.5
A27: 26 | B27: Plot the equation y = 2x3 - 5x2 + x + 2 from -1 to 2.5 in steps of 0.1 (use the worksheet "Polynomial") | L27: 2.6 | M27: 5.952
A28: 27 | B28: Use "solver" or "goal seek" to find three roots of 2x3 - 5x2 + x + 2 = 0 (use Data | Solver) | L28: 2.7 | M28: 7.616
A29: 28 | B29: Turn on the macro recorder (View | Macros | Record Macro...). Now change the font of cells F34 through F37 to Times Roman. Turn off the macro recorder. Change the font for cells F34 through F37 back to Arial, and run the macro (macro1) to see if it correctly changes the font. | L29: 2.8 | M29: 9.504
A30: 29 | B30: Modfiy macro1 so that it changes the font of cells E1 through E24 instead of F34 through F37. | L30: 2.9 | M30: 11.628
A31: 30 | B31: Write a macro to generate the first 40 numbers of the fibonacci sequence in column A of a new worksheet called "Fibonacci." (The sequence is 0, 1, 1, 2, 3, 5, 8, …, where each term is the sum of the previous two terms). | L31: 3 | M31: 14
A32: 31 | B32: Test the macro by deleting the Fibonacci worksheet and running it again. If there is a problem, fix it. (Note: You can assign a variable to a new worksheet by using the syntax set x=sheets.add). | L32: 3.1 | M32: 16.632
D33: Kt | E33: 1.52 | L33: 3.2 | M33: 19.536
D34: r | E34: 1 | F34: g/ml | L34: 3.3 | M34: 22.724
D35: Dv | E35: =0.25*2.54 -> 0.635 | F35: cm | L35: 3.4 | M35: 26.208
D36: Ds | E36: =E35/3 -> 0.2116666667 | F36: cm | L36: 3.5 | M36: 30
D37: Ls | E37: 2.54 | F37: cm | L37: 3.6 | M37: 34.112
D38: m | E38: 0.01
E39: 0.01 | F39: g/(cm-s)
C41: 10 | D41: =(8*Kt*rho)/(PI()^2*Dv^4)*((((Dv/Ds)^2)-1)^2)*C41^2 -> 48497.44982 | E41: =32*(Dv^4/Ds^4)*(0.83*Ls-1.64*Ds)*4*mmu*C41/(PI()*Dv^4) -> 3574.588152 | F41: =D41+E41 -> 52072.03797
C42: 10.2 | D42: 50456.74679 | E42: 3646.079915 | F42: =D42+E42 -> 54102.82671
C43: 10.4 | D43: 52454.84173 | E43: 3717.571678 | F43: 56172.4134
C44: 10.6 | D44: 54491.73462 | E44: 3789.063441 | F44: 58280.79806
C45: 10.8 | D45: 56567.42547 | E45: 3860.555204 | F45: 60427.98068
C46: 11 | D46: 58681.91428 | E46: 3932.046967 | F46: 62613.96125
C47: 11.2 | D47: 60835.20106 | E47: 4003.53873 | F47: 64838.73979
C48: 11.4 | D48: 63027.28579 | E48: 4075.030493 | F48: 67102.31628
C49: 11.6 | D49: 65258.16848 | E49: 4146.522256 | F49: 69404.69074
C50: 11.8 | D50: 67527.84913 | E50: 4218.014019 | F50: 71745.86315
C51: 12 | D51: 69836.32774 | E51: 4289.505782 | F51: 74125.83353
C52: 12.2 | D52: 72183.60431 | E52: 4360.997545 | F52: 76544.60186
C53: 12.4 | D53: 74569.67885 | E53: 4432.489308 | F53: 79002.16815
C54: 12.6 | D54: 76994.55134 | E54: 4503.981071 | F54: 81498.53241
C55: 12.8 | D55: 79458.22179 | E55: 4575.472834 | F55: 84033.69462
C56: 13 | D56: 81960.6902 | E56: 4646.964597 | F56: 86607.6548
C57: 13.2 | D57: 84501.95657 | E57: 4718.45636 | F57: 89220.41293
C58: 13.4 | D58: 87082.0209 | E58: 4789.948123 | F58: 91871.96902
C59: 13.6 | D59: 89700.88319 | E59: 4861.439886 | F59: 94562.32308
C60: 13.8 | D60: 92358.54344 | E60: 4932.931649 | F60: 97291.47509
C61: 14 | D61: 95055.00165 | E61: 5004.423412 | F61: 100059.4251
C62: 14.2 | D62: 97790.25782 | E62: 5075.915175 | F62: 102866.173
C63: 14.4 | D63: 100564.312 | E63: 5147.406939 | F63: 105711.7189
C64: 14.6 | D64: 103377.164 | E64: 5218.898702 | F64: 108596.0627
C65: 14.8 | D65: 106228.8141 | E65: 5290.390465 | F65: 111519.2046
C66: 15 | D66: 109119.2621 | E66: 5361.882228 | F66: 114481.1443
C67: 15.2 | D67: 112048.5081 | E67: 5433.373991 | F67: 117481.8821
C68: 15.4 | D68: 115016.552 | E68: 5504.865754 | F68: 120521.4178
C69: 15.6 | D69: 118023.3939 | E69: 5576.357517 | F69: 123599.7514
C70: 15.8 | D70: 121069.0337 | E70: 5647.84928 | F70: 126716.883
C71: 16 | D71: 124153.4715 | E71: 5719.341043 | F71: 129872.8126
C72: 16.2 | D72: 127276.7073 | E72: 5790.832806 | F72: 133067.5401
C73: 16.4 | D73: =(8*Kt*rho)/(PI()^2*Dv^4)*((((Dv/Ds)^2)-1)^2)*C73^2 -> 130438.741 | E73: =32*(Dv^4/Ds^4)*(0.83*Ls-1.64*Ds)*4*mmu*C73/(PI()*Dv^4) -> 5862.324569 | F73: 136301.0656
C74: 16.6 | D74: 133639.5727 | E74: 5933.816332 | F74: 139573.3891
C75: 16.8 | D75: 136879.2024 | E75: 6005.308095 | F75: 142884.5105
C76: 17 | D76: 140157.63 | E76: 6076.799858 | F76: 146234.4298
C77: 17.2 | D77: 143474.8556 | E77: 6148.291621 | F77: 149623.1472
C78: 17.4 | D78: 146830.8791 | E78: 6219.783384 | F78: 153050.6625
C79: 17.6 | D79: 150225.7006 | E79: 6291.275147 | F79: 156516.9757
C80: 17.8 | D80: 153659.32 | E80: 6362.76691 | F80: 160022.0869
C81: 18 | D81: 157131.7374 | E81: 6434.258673 | F81: 163565.9961
C82: 18.2 | D82: 160642.9528 | E82: 6505.750436 | F82: 167148.7032
C83: 18.4 | D83: 164192.9661 | E83: 6577.242199 | F83: 170770.2083
C84: 18.6 | D84: 167781.7774 | E84: 6648.733962 | F84: 174430.5114
C85: 18.8 | D85: 171409.3866 | E85: 6720.225725 | F85: 178129.6124
C86: 19 | D86: 175075.7939 | E86: 6791.717488 | F86: 181867.5113
C87: 19.2 | D87: 178780.999 | E87: 6863.209251 | F87: 185644.2083
C88: 19.4 | D88: 182525.0021 | E88: 6934.701014 | F88: 189459.7032
C89: 19.6 | D89: 186307.8032 | E89: 7006.192777 | F89: 193313.996
C90: 19.8 | D90: 190129.4023 | E90: 7077.68454 | F90: 197207.0868
C91: 20 | D91: 193989.7993 | E91: 7149.176303 | F91: 201138.9756
V20212: Potato

Sheet Question Set 2 (Graphing)
A1: Task No. | B1: Task | C1: Answer | D1: Answer | F1: 0 | G1: =COS(10*PI()*F1) -> 1 | H1: =SIN(10*PI()*F1) -> 0
A2: 1 | B2: Generate a set of data in Column F that consists of 101 points, starting at 0, ending at 2, and incrementing in steps of 0.02 seconds. | F2: 0.02 | G2: =COS(10*PI()*F2) -> 0.8090169944 | H2: =SIN(10*PI()*F2) -> 0.5877852523 | J2: 0 | K2: 1.421790481 | L2: =3.8*J2+1.22 -> 1.22 | M2: =L2+RAND() -> 1.424401436 | N2: =K2/5 -> 0.2843580962
A3: 2 | B3: Generate a set of data in Column G, based on the time data in Column F, that is cos(wt), where w is 10p radians/sec. (i.e. frequency is 5 Hz). | F3: 0.04 | G3: 0.3090169944 | H3: 0.9510565163 | J3: 0.1 | K3: 1.910994753 | L3: =3.8*J3+1.22 -> 1.6 | M3: =L3+RAND() -> 2.428218438 | N3: =K3/5 -> 0.3821989506
A4: 3 | B4: Generate another set of data in Column H that is sin(wt). | F4: 0.06 | G4: -0.3090169944 | H4: 0.9510565163 | J4: 0.2 | K4: 2.211549663 | L4: 1.98 | M4: 2.205679559 | N4: 0.4423099326
A5: 4 | B5: Generate an x-y scatter plot of Columns G and H as a function of time. | F5: 0.08 | G5: -0.8090169944 | H5: 0.5877852523 | J5: 0.3 | K5: 3.189585325 | L5: 2.36 | M5: 2.84979685 | N5: 0.6379170649
A6: 5 | B6: For the cosine curve, use a solid black line instead of a symbol marker. | F6: 0.1 | G6: -1 | H6: 1.225148455e-16 | J6: 0.4 | K6: 3.431949573 | L6: 2.74 | M6: 3.487175322 | N6: 0.6863899147
A7: 6 | B7: For the sine curve, use a dashed black line instead of a symbol marker. | F7: 0.12 | G7: -0.8090169944 | H7: -0.5877852523 | J7: 0.5 | K7: 3.208674301 | L7: 3.12 | M7: 3.777863527 | N7: 0.6417348602
A8: 7 | B8: Label the x-axis as Time (sec) | F8: 0.14 | G8: -0.3090169944 | H8: -0.9510565163 | J8: 0.6 | K8: 4.177542824 | L8: 3.5 | M8: 4.132052666 | N8: 0.8355085649
A9: 8 | B9: Label the y-axis as "sin(wt) or cos(wt)" and make sure that w shows up as a greek letter. | F9: 0.16 | G9: 0.3090169944 | H9: -0.9510565163 | J9: 0.7 | K9: 4.508839319 | L9: 3.88 | M9: 4.441943437 | N9: 0.9017678639
A10: 9 | B10: Remove the horizontal grid lines from the plot. | F10: 0.18 | G10: 0.8090169944 | H10: -0.5877852523 | J10: 0.8 | K10: 4.879434109 | L10: 4.26 | M10: 4.402806866 | N10: 0.9758868218
A11: 10 | B11: Change the gray background in the plot to white. | F11: 0.2 | G11: 1 | H11: -2.45029691e-16 | J11: 0.9 | K11: 4.664714396 | L11: 4.64 | M11: 5.346451642 | N11: 0.9329428792
A12: 11 | B12: Move the x-axis so that it intersects the y-axis at -1.5 | D12: 0 | E12: 0 | F12: 0.22 | G12: 0.8090169944 | H12: 0.5877852523 | J12: 1 | K12: 5.796266636 | L12: 5.02 | M12: 5.951386153 | N12: 1.159253327
A13: 12 | B13: Change the x-axis scale so that it ranges from 0 to 2. | D13: 2 | E13: 0 | F13: 0.24 | G13: 0.3090169944 | H13: 0.9510565163 | J13: 1.1 | K13: 5.589722432 | L13: 5.4 | M13: 5.854014439 | N13: 1.117944486
A14: 13 | B14: Add a horizontal line at y=0 that starts at x=0 and ends at x=2. | F14: 0.26 | G14: -0.3090169944 | H14: 0.9510565163 | J14: 1.2 | K14: 6.655426475 | L14: 5.78 | M14: 6.751596829 | N14: 1.331085295
A15: 14 | B15: Remove the box around the legend. | F15: 0.28 | G15: -0.8090169944 | H15: 0.5877852523 | J15: 1.3 | K15: 6.733078505 | L15: 6.16 | M15: 6.943351799 | N15: 1.346615701
A16: 15 | B16: Interchange thepositions of the legends so that sin is on top and cos is on the bottom | F16: 0.3 | G16: -1 | H16: 3.675445365e-16 | J16: 1.4 | K16: 7.50890055 | L16: 6.54 | M16: 6.878590064 | N16: 1.50178011
A17: 16 | B17: Move the legend so that it appears in the region of the graph between y=1 and y=1.5 and is approximately centered around x=1. | F17: 0.32 | G17: -0.8090169944 | H17: -0.5877852523 | J17: 1.5 | K17: 6.967512816 | L17: 6.92 | M17: 7.58870718 | N17: 1.393502563
A18: 17 | B18: Remove the border around the entire plot. | F18: 0.34 | G18: -0.3090169944 | H18: -0.9510565163 | J18: 1.6 | K18: 8.103559046 | L18: 7.3 | M18: 7.396571736 | N18: 1.620711809
A19: 18 | B19: Rotate the y-axis number labels by 90 degrees (so that text is read from bottom to top instead of left to right). | F19: 0.36 | G19: 0.3090169944 | H19: -0.9510565163 | J19: 1.7 | K19: 7.97721077 | L19: 7.68 | M19: 8.289087423 | N19: 1.595442154
A20: 19 | B20: Generate a new x-y plot, based on the data in columns J and K. | F20: 0.38 | G20: 0.8090169944 | H20: -0.5877852523 | J20: 1.8 | K20: 8.237969913 | L20: 8.06 | M20: 8.918821185 | N20: 1.647593983
A21: 20 | B21: Again, remove the gray background and horizontal lines. | F21: 0.4 | G21: 1 | H21: -4.90059382e-16 | J21: 1.9 | K21: 9.296557365 | L21: 8.44 | M21: 8.534221416 | N21: 1.859311473
A22: 21 | B22: Label the x-axis as Flow Rate (ml/s) (Hint: When you click on the plot, the "Layout" tab will appear, which will have a "Labels" group). | F22: 0.42 | G22: 0.8090169944 | H22: 0.5877852523 | J22: 2 | K22: 9.021558501 | L22: 8.82 | M22: 8.923635167 | N22: 1.8043117
A23: 22 | B23: Label the y-axis as DP (dynes/cm2) | F23: 0.44 | G23: 0.3090169944 | H23: 0.9510565163 | J23: 2.1 | K23: 9.288260345 | L23: 9.2 | M23: 9.768848924 | N23: 1.857652069
A24: 23 | B24: Add a linear least squares fit of the data to the plot. (The "Layout" ribbon will have "Trendline" in the Analysis group). | F24: 0.46 | G24: -0.3090169944 | H24: 0.9510565163 | J24: 2.2 | K24: 10.16377691 | L24: 9.58 | M24: 9.758438488 | N24: 2.032755382 | Q24: 0 | R24: 4
A25: 24 | B25: Make the equation for the least squares fit show up on the plot. | F25: 0.48 | G25: -0.8090169944 | H25: 0.5877852523 | J25: 2.3 | K25: 10.63912693 | L25: 9.96 | M25: 10.42289513 | N25: 2.127825387 | Q25: 0.1 | R25: 0.2
A26: 25 | B26: Make the r2 value for the least squares fit show up on the plot. | F26: 0.5 | G26: -1 | H26: 6.125742275e-16 | J26: 2.4 | K26: 10.54499796 | L26: 10.34 | M26: 10.70589739 | N26: 2.108999591 | Q26: 0.4 | R26: 0.2
A27: 26 | B27: Remove the legend. | F27: 0.52 | G27: -0.8090169944 | H27: -0.5877852523 | J27: 2.5 | K27: 11.63220548 | L27: 10.72 | M27: 11.25369427 | N27: 2.326441096 | Q27: 0.5 | R27: 1
A28: 27 | B28: The standard deviation for each data point is in column N. Put vertical error bars at each point to indicate the standard deviations. ("Error Bars" is in the Analysis group of the "Layout" ribbon. Scroll to "More Error Bar Options" and select "Vertical Error Bars," then "Custom" and "Specify Value." For some inexplicable reason, Excel will put horizontal error bars on the plot, which you can delete after you have finished creating the vertical bars). | F28: 0.54 | G28: -0.3090169944 | H28: -0.9510565163 | Q28: 0.6 | R28: 3
F29: 0.56 | G29: 0.3090169944 | H29: -0.9510565163 | Q29: 2 | R29: 7
F30: 0.58 | G30: 0.8090169944 | H30: -0.5877852523
F31: 0.6 | G31: 1 | H31: -7.350890729e-16
F32: 0.62 | G32: 0.8090169944 | H32: 0.5877852523
F33: 0.64 | G33: 0.3090169944 | H33: 0.9510565163
F34: 0.66 | G34: -0.3090169944 | H34: 0.9510565163
F35: 0.68 | G35: -0.8090169944 | H35: 0.5877852523
F36: 0.7 | G36: -1 | H36: 8.576039184e-16
F37: 0.72 | G37: -0.8090169944 | H37: -0.5877852523
F38: 0.74 | G38: -0.3090169944 | H38: -0.9510565163
F39: 0.76 | G39: 0.3090169944 | H39: -0.9510565163
F40: 0.78 | G40: 0.8090169944 | H40: -0.5877852523
F41: 0.8 | G41: 1 | H41: -9.801187639e-16
F42: 0.82 | G42: 0.8090169944 | H42: 0.5877852523
F43: 0.84 | G43: 0.3090169944 | H43: 0.9510565163
F44: 0.86 | G44: -0.3090169944 | H44: 0.9510565163
F45: 0.88 | G45: -0.8090169944 | H45: 0.5877852523
F46: 0.9 | G46: -1 | H46: 1.102633609e-15
F47: 0.92 | G47: -0.8090169944 | H47: -0.5877852523
F48: 0.94 | G48: -0.3090169944 | H48: -0.9510565163
F49: 0.96 | G49: 0.3090169944 | H49: -0.9510565163
F50: 0.98 | G50: 0.8090169944 | H50: -0.5877852523
F51: 1 | G51: 1 | H51: -1.225148455e-15
F52: 1.02 | G52: 0.8090169944 | H52: 0.5877852523
F53: 1.04 | G53: 0.3090169944 | H53: 0.9510565163
F54: 1.06 | G54: -0.3090169944 | H54: 0.9510565163
F55: 1.08 | G55: -0.8090169944 | H55: 0.5877852523
F56: 1.1 | G56: -1 | H56: -2.205050378e-15
F57: 1.12 | G57: -0.8090169944 | H57: -0.5877852523
F58: 1.14 | G58: -0.3090169944 | H58: -0.9510565163
F59: 1.16 | G59: 0.3090169944 | H59: -0.9510565163
F60: 1.18 | G60: 0.8090169944 | H60: -0.5877852523
F61: 1.2 | G61: 1 | H61: -1.470178146e-15
F62: 1.22 | G62: 0.8090169944 | H62: 0.5877852523
F63: 1.24 | G63: 0.3090169944 | H63: 0.9510565163
F64: 1.26 | G64: -0.3090169944 | H64: 0.9510565163
F65: 1.28 | G65: -0.8090169944 | H65: 0.5877852523
F66: 1.3 | G66: =COS(10*PI()*F66) -> -1 | H66: =SIN(10*PI()*F66) -> -1.960020687e-15
F67: 1.32 | G67: -0.8090169944 | H67: -0.5877852523
F68: 1.34 | G68: -0.3090169944 | H68: -0.9510565163
F69: 1.36 | G69: 0.3090169944 | H69: -0.9510565163
F70: 1.38 | G70: 0.8090169944 | H70: -0.5877852523
F71: 1.4 | G71: 1 | H71: -1.715207837e-15
F72: 1.42 | G72: 0.8090169944 | H72: 0.5877852523
F73: 1.44 | G73: 0.3090169944 | H73: 0.9510565163
F74: 1.46 | G74: -0.3090169944 | H74: 0.9510565163
F75: 1.48 | G75: -0.8090169944 | H75: 0.5877852523
F76: 1.5 | G76: -1 | H76: 5.390436361e-15
F77: 1.52 | G77: -0.8090169944 | H77: -0.5877852523
F78: 1.54 | G78: -0.3090169944 | H78: -0.9510565163
F79: 1.56 | G79: 0.3090169944 | H79: -0.9510565163
F80: 1.58 | G80: 0.8090169944 | H80: -0.5877852523
F81: 1.6 | G81: 1 | H81: -1.960237528e-15
F82: 1.62 | G82: 0.8090169944 | H82: 0.5877852523
F83: 1.64 | G83: 0.3090169944 | H83: 0.9510565163
F84: 1.66 | G84: -0.3090169944 | H84: 0.9510565163
F85: 1.68 | G85: -0.8090169944 | H85: 0.5877852523
F86: 1.7 | G86: -1 | H86: 5.635466052e-15
F87: 1.72 | G87: -0.8090169944 | H87: -0.5877852523
F88: 1.74 | G88: -0.3090169944 | H88: -0.9510565163
F89: 1.76 | G89: 0.3090169944 | H89: -0.9510565163
F90: 1.78 | G90: 0.8090169944 | H90: -0.5877852523
F91: 1.8 | G91: 1 | H91: -2.205267219e-15
F92: 1.82 | G92: 0.8090169944 | H92: 0.5877852523
F93: 1.84 | G93: 0.3090169944 | H93: 0.9510565163
F94: 1.86 | G94: -0.3090169944 | H94: 0.9510565163
F95: 1.88 | G95: -0.8090169944 | H95: 0.5877852523
F96: 1.9 | G96: -1 | H96: 5.880495743e-15
F97: 1.92 | G97: -0.8090169944 | H97: -0.5877852523
F98: 1.94 | G98: -0.3090169944 | H98: -0.9510565163
F99: 1.96 | G99: 0.3090169944 | H99: -0.9510565163
F100: 1.98 | G100: 0.8090169944 | H100: -0.5877852523
F101: 2 | G101: 1 | H101: -2.45029691e-15

Sheet Question Set 3 (strings)
A1: Q. Number | B1: Question
A2: 1 | B2: Column F has a list of email addresses. Break each address into two parts, (1) put the user name (the part before the "@") in column G, and (2) put the domain (the part after the "@") in column H. (see Search(), Left(), Right() and Len()). | D2: x | F2: boris@pottsylvania.org | G2: =IF(AND(SEARCH("e",F2 & "e") <LEN(F2)+1, SEARCH("a",F2 & "a") <LEN(F2)+1),"TRUE","FALSE") -> FALSE | H2: =CODE(F2)-CODE("A")+1 -> 34
A3: 2 | B3: In Column I, copy each email address in column F with angled brackets around it. I.e., the first email address should become <boris@pottsylvania.org>. (See the concatanation character "&"). | F3: natasha_fatale@reallybadguys.com | G3: =IF(AND(SEARCH("e",F3 & "e") <LEN(F3)+1, SEARCH("a",F3 & "a") <LEN(F3)+1),"TRUE","FALSE") -> TRUE | H3: =CODE(F3)-CODE("A")+1 -> 46
A4: 3 | B4: In Column J, print the word "TRUE" if the email address has the letter "e" in it and "#VALUE" if the email address does not have the letter "e" in it. (See If() and Search()). | D4: x | F4: rocky@frostbitefalls.net | G4: TRUE | H4: 50
A5: 4 | B5: In Column K, print the word "TRUE" if the email address has the letter "e" in it and "FALSE" if the email address does not have the letter "e" in it. (This one is tricky). | F5: bullwinkle@whattsamattaU.edu | G5: TRUE | H5: 34
A6: 5 | B6: Three of the email addresses have a trailing space (" ") appended to them. Use "If()," "Trim()" and "Len()" to identify these addresses. | F6: dudley@rcmp.can | G6: TRUE | H6: 36
A7: 6 | B7: In Colum M, translate the first character in each email address to its ASCII representation. (See "Code()"). | D7: x | F7: nell@nicepeople.org | G7: FALSE | H7: 46
A8: 7 | B8: In Column N, translate the first character in each email to its numerical position with respect to the code for capital "A". E.g., "MrPeabody" starts with "M," the 13th letter so the answer should be 2, but a lower-case "m" should give you a value of 45. | D8: x | F8: captfenwick@rcmp.can | G8: TRUE | H8: 35
A9: 8 | B9: In Column O, repeat problem 7, but change it so that the alphabetic position is written, whether the letter is capital or not. I.e. both "M" and "m" should give 13. (See "Upper()"). | F9: MrBig@pottsylvania.org | G9: FALSE | H9: 13
A10: 9 | B10: In Column P, print "TRUE" if the email address has both an "e" and an "a" in it. (See "And()"). | D10: x | F10: MrPeabody@wayback.com | G10: TRUE | H10: 13
A11: 10 | B11: Below the data in column M, count the number of lines that have a number greater than 13. (See CountIf()). | D11: x | F11: Sherman@wayback.com | G11: TRUE | H11: 19
A12: 11 | B12: In cell D12, count the number of non-blank cells in the range D1:D11 (see Counta()). | F12: aesop@fables.org | G12: TRUE | H12: 33
F13: AndSon@fables.org | G13: TRUE | H13: 1
F14: eehorton@narrators.org | G14: TRUE | H14: 37
F15: juneforay@talkingtina.net | G15: TRUE | H15: 42

Sheet Question Set 4 (Math)
A1: Number | B1: Problem
A2: 1 | B2: Find the determinant of the matrix in the range E4:G5.
A3: 2 | B3: Find the inverse of the matrix in the range E4:G5.
A4: 3 | B4: Multiply the matrix in the range E4:G5 by its inverse to verify that the product is the identity matrix. | E4: 2 | F4: 8 | G4: 21
A5: 4 | B5: For the data set that starts at cell E12, take the Fourier transform (see the Data Analysis tool under the Data ribbon). Place the output in column H. (Note: Column E is the time axis, which is not used by the Fourier transform routine). | E5: 3 | F5: 3 | G5: 12
A6: 5 | B6: Take the magnitude of the Fourier transform output you just created. (See the IMABS() function). | E6: 4 | F6: 4 | G6: 3
A7: 6 | B7: Import the data in the file "nicedata.txt" to an excel spreadsheet. (You should end up with a spreadsheet that has 8 columns).
A8: 7 | B8: Plot the 2nd column of the imported data as a function of the first column.
E13: 0 | F13: =SIN(2*PI()*7*E13/3.2+0.5) -> 0.4794255386
E14: 0.1 | F14: =SIN(2*PI()*7*E14/3.2+0.5) -> 0.9542513417
E15: 0.2 | F15: -0.1070951355
E16: 0.3 | F16: -0.9960377907
E17: 0.4 | F17: -0.2815395311
E18: 0.5 | F18: 0.8861865151
E19: 0.6 | F19: 0.6273123563
E20: 0.7 | F20: -0.6414213759
E21: 0.8 | F21: -0.8775825619
E22: 0.9 | F22: 0.2990056467
E23: 1 | F23: 0.9942487777
E24: 1.1 | F24: 0.08893098169
E25: 1.2 | F25: -0.95954963
E26: 1.3 | F26: -0.4633286743
E27: 1.4 | F27: 0.7787677494
E28: 1.5 | F28: 0.7671887763
E29: 1.6 | F29: -0.4794255386
E30: 1.7 | F30: -0.9542513417
E31: 1.8 | F31: 0.1070951355
E32: 1.9 | F32: 0.9960377907
E33: 2 | F33: 0.2815395311
E34: 2.1 | F34: -0.8861865151
E35: 2.2 | F35: -0.6273123563
E36: 2.3 | F36: 0.6414213759
E37: 2.4 | F37: 0.8775825619
E38: 2.5 | F38: -0.2990056467
E39: 2.6 | F39: -0.9942487777
E40: 2.7 | F40: -0.08893098169
E41: 2.8 | F41: 0.95954963
E42: 2.9 | F42: 0.4633286743
E43: 3 | F43: -0.7787677494
E44: 3.1 | F44: -0.7671887763

Sheet Normal
